bitfinex/quotes_SOLUSD_20250305
["timestamp","ask_amount","ask_price","bid_price","bid_amount"]
[1741218311216,1.5728,147.0,146.91,393.8988]
[1741218311512,1.5728,147.0,146.92,6.8064]
[1741218312095,18.64964886,146.99,146.92,6.8064]
[1741218312306,18.64964886,146.99,146.91,400.7056]
[1741218312818,18.64964886,146.97,146.88,80.2999]
[1741218312994,20.09712555,146.99,146.86,214.7999]
[1741218312995,18.64964886,146.95,146.86,214.7999]
[1741218313192,81.74747669,146.94,146.85,0.03]
[1741218313512,18.64964886,146.92,146.85,0.03]
[1741218314319,21.66112555,146.92,146.85,0.03]
[1741218315410,20.21364886,146.92,146.85,0.03]
[1741218317622,100.51364886,146.92,146.85,0.03]
[1741218318126,80.3,146.92,146.85,18.28300864]
[1741218318314,10.63110176,146.94,146.85,100.01266923]
[1741218318917,10.63110176,146.94,146.86,6.8092]
[1741218319428,18.64964886,146.94,146.86,6.8092]
[1741218321258,18.64964886,146.94,146.86,318.8092]
[1741218321927,12.07857845,146.97,146.89,20.0]
[1741218322109,10.63110176,146.97,146.9,0.14216157]
[1741218322307,10.63110176,146.97,146.96,21.6362]
[1741218322506,10.63110176,146.97,146.96,27.7362]
[1741218322709,10.63110176,146.97,146.96,162.37836157]
[1741218322917,10.63110176,146.97,146.96,181.02801043]
[1741218323230,10.63110176,146.97,146.96,206.08551907]
[1741218323409,10.63110176,146.97,146.96,187.83251043]
[1741218323607,1.76e-06,146.97,146.96,187.83251043]
[1741218323826,1.76e-06,146.97,146.96,133.23577021]
[1741218324033,0.03,147.06,146.97,0.14216157]
[1741218324201,0.03,147.06,146.97,80.2999]
[1741218324406,0.03,147.06,146.94,6.0768]
[1741218324407,18.64964886,147.04,146.94,6.0768]
[1741218324615,18.64964886,147.02,146.94,6.0768]
[1741218325029,18.64964886,147.0,146.93,312.0]
[1741218325337,18.64964886,147.0,146.91,13.0868]
[1741218325633,18.64964886,147.0,146.91,6.28]
[1741218326035,18.64964886,147.0,146.91,13.0866]
[1741218326415,80.3,147.02,146.91,42.2619621]
[1741218326607,6.3418,147.03,146.94,20.0]
[1741218327410,18.64964886,147.02,146.94,20.0]
[1741218328008,81.74747669,147.01,146.91,80.2999]
[1741218328237,20.15264886,146.99,146.88,80.2999]
[1741218328416,18.64964886,146.97,146.86,92.8666]
[1741218328755,1.44747669,146.96,146.86,92.8666]
[1741218328939,24.92544886,146.95,146.86,6.3]
[1741218329544,18.64964886,146.93,146.85,0.03]
[1741218329727,1.44747669,146.92,146.85,0.03]
[1741218329927,1.44747669,146.92,146.85,20.03]
[1741218330434,1.44747669,146.92,146.85,0.03]
[1741218330435,18.64964886,146.89,146.85,0.03]
[1741218330615,1.44747669,146.88,146.85,0.03]
[1741218331338,1.6439,146.9,146.85,0.03]
[1741218331516,80.3,146.94,146.85,29.2053621]
[1741218331716,7.8104,146.95,146.85,0.03]
[1741218332018,20.09712555,146.94,146.85,0.03]
[1741218332212,18.64964886,146.92,146.85,0.03]
[1741218332415,18.64964886,146.9,146.85,0.03]
[1741218332619,18.64964886,146.88,146.85,0.03]
[1741218332820,18.64964886,146.86,146.85,0.03]
[1741218333116,106.74364886,146.86,146.85,0.03]
[1741218334340,26.44364886,146.86,146.85,0.03]
[1741218335552,6.5304,146.89,146.85,0.03]
[1741218335951,18.64964886,146.9,146.85,0.03]
[1741218336450,1.5143,146.91,146.85,0.03]
[1741218336845,80.3,146.92,146.85,0.03]
[1741218340343,1.5845,146.95,146.86,29.1753621]
[1741218340540,80.3,146.96,146.87,29.1753621]
[1741218341774,80.3,146.96,146.88,6.8082]
[1741218343279,24.78334886,146.97,146.9,29.1753621]
[1741218343280,0.033,146.97,146.9,29.1753621]
[1741218343950,0.033,146.97,146.89,6.42]
[1741218344470,18.68264886,146.97,146.89,6.42]
[1741218344671,18.64964886,146.95,146.85,6.8392]
[1741218345278,18.64964886,146.95,146.85,36.0145621]
[1741218345456,18.64964886,146.95,146.85,6.8392]
[1741218345650,18.64964886,146.96,146.85,36.0145621]
[1741218346377,18.64964886,146.96,146.85,6.8392]
[1741218346877,18.64964886,146.96,146.85,318.8392]
[1741218347174,1.44747669,146.95,146.85,6.8392]
[1741218347582,0.033,146.97,146.88,29.1753621]
[1741218347752,0.033,146.97,146.95,29.1753621]
[1741218348079,0.033,146.97,146.94,29.1753621]
[1741218348259,0.033,146.97,146.93,30.60393296]
[1741218348449,0.033,146.97,146.93,29.1753621]
[1741218348651,0.033,146.97,146.94,29.1753621]
[1741218348854,0.033,146.97,146.95,6.805]
[1741218349057,0.033,146.97,146.95,116.2802621]
[1741218349459,0.033,146.97,146.96,29.1753621]
[1741218349758,0.033,146.97,146.95,87.1049]
[1741218349967,0.033,146.97,146.95,80.2999]
[1741218350165,0.033,146.97,146.95,392.2999]
[1741218350544,0.033,146.97,146.95,421.4752621]
[1741218350751,0.033,146.97,146.96,29.1753621]
[1741218351050,0.033,146.97,146.96,42.5225621]
[1741218352373,0.033,146.97,146.96,13.3472]
[1741218353049,0.033,146.97,146.96,42.5225621]
[1741218353477,0.033,146.97,146.96,13.3472]
[1741218353653,0.033,146.97,146.96,6.5427]
[1741218353969,0.033,146.97,146.96,325.3472]
[1741218354177,0.033,146.97,146.96,354.5225621]
[1741218354674,0.03,147.06,146.99,20.0]
[1741218354973,0.03,147.06,147.0,30.60337459]
[1741218355182,0.03,147.06,147.01,29.1753621]
[1741218355554,0.03,147.06,146.99,263.9752621]
[1741218356073,0.03,147.06,146.99,80.2999]
[1741218357358,0.03,147.06,146.99,87.103]
[1741218357556,0.03,147.06,146.99,88.53119182]
[1741218357794,0.03,147.06,147.0,318.8025]
[1741218358081,0.03,147.06,147.0,428.2777621]
[1741218358249,0.03,147.06,147.0,116.2777621]
[1741218358451,0.03,147.06,147.01,29.1753621]
[1741218358973,0.03,147.06,147.02,29.1753621]
[1741218359157,0.03,147.06,147.02,109.4752621]
[1741218359559,0.03,147.06,147.02,87.1012]
[1741218360284,0.03,147.06,147.02,88.52897942]
[1741218360966,0.03,147.06,147.03,36.11842367]
[1741218361169,0.03,147.06,147.03,6.94306157]
[1741218361356,0.03,147.06,147.04,312.0]
[1741218361863,0.03,147.06,147.03,6.94326157]
[1741218362061,0.03,147.06,147.02,80.2999]
[1741218362275,0.03,147.06,146.98,80.2999]
[1741218362683,0.03,147.06,146.99,1.57038699]
[1741218362892,0.03,147.06,146.98,80.2999]
[1741218363383,0.03,147.06,146.98,87.1034]
[1741218363694,0.03,147.06,146.98,80.2999]
[1741218363868,0.03,147.06,146.93,12.8523]
[1741218363869,18.64964886,147.04,146.93,12.8523]
[1741218364192,80.3,147.03,146.93,6.8057]
[1741218364373,80.3,147.03,146.93,35.9810621]
[1741218364880,80.3,147.03,146.94,35.9806621]
[1741218365185,18.64964886,147.02,146.93,341.1753621]
[1741218365485,18.64964886,147.02,146.93,6.8058]
[1741218365680,80.3,147.03,146.94,29.1753621]
[1741218366070,80.3,147.03,146.93,35.9811621]
[1741218366284,18.64964886,147.02,146.93,35.9811621]
[1741218366585,18.64964886,147.02,146.93,6.8058]
[1741218366790,18.64964886,147.02,146.93,35.9811621]
[1741218366962,80.3,147.03,146.93,35.9811621]
[1741218367168,80.3,147.03,146.94,30.60403921]
[1741218367489,7.7816,147.05,146.97,49.1753621]
[1741218367676,1.6305,147.05,146.98,29.1753621]
[1741218368065,0.03,147.06,146.98,29.1753621]
[1741218368975,0.03,147.06,147.0,6.8027]
[1741218369172,0.03,147.06,147.0,252.20599988]
[1741218369380,0.03,147.06,147.01,29.31752367]
[1741218369574,0.03,147.06,147.0,214.7999]
[1741218370587,0.03,147.06,147.01,30.60347569]
[1741218371092,0.03,147.06,147.02,6.8017]
[1741218371787,0.03,147.06,147.0,243.9752621]
[1741218372093,0.03,147.06,147.0,214.7999]
[1741218373597,0.03,147.06,147.0,221.6025]
[1741218374097,0.03,147.06,147.0,87.1025]
[1741218374798,0.03,147.06,147.0,87.1024]
[1741218376091,0.03,147.06,147.0,80.2999]
[1741218376695,0.03,147.06,147.0,87.1025]
[1741218378197,0.03,147.06,147.02,6.8017]
[1741218378497,0.03,147.06,147.02,37.40496981]
[1741218379773,0.03,147.06,147.01,6.802]
[1741218380370,0.03,147.06,147.0,80.2999]
[1741218380576,6.0524,147.05,147.0,80.2999]
[1741218380798,18.64964886,147.04,146.95,87.2199]
[1741218380994,1.5428,147.03,146.95,87.1049]
[1741218381198,80.3,147.02,146.93,6.8059]
[1741218381504,18.64964886,147.01,146.93,6.8059]
[1741218381680,18.64964886,147.01,146.93,87.1058]
[1741218383293,80.3,147.0,146.91,80.2999]
[1741218383501,18.64964886,146.98,146.9,0.03]
[1741218383683,18.64964886,146.96,146.9,0.03]
[1741218384077,18.64964886,146.94,146.9,0.03]
[1741218384273,18.64964886,146.92,146.85,0.03]
[1741218384483,18.64964886,146.9,146.85,0.03]
[1741218384681,18.64964886,146.88,146.85,0.03]
[1741218384891,1.44747669,146.88,146.85,0.03]
[1741218385072,20.09712555,146.92,146.85,0.03]
[1741218385274,22.09712555,146.92,146.85,0.03]
[1741218385679,20.09712555,146.92,146.85,0.03]
[1741218386890,20.09712555,146.92,146.84,0.03]
[1741218386891,80.3,146.91,146.8,399.1418]
[1741218387104,18.64964886,146.89,146.8,399.1418]
[1741218389185,18.64964886,146.87,146.8,0.03]
[1741218389405,1.44747669,146.88,146.8,0.03]
[1741218389608,98.94964886,146.87,146.8,0.03]
[1741218389811,98.94964886,146.87,146.8,6.8419]
[1741218390419,1.44747669,146.86,146.8,0.03]
[1741218390785,18.64964886,146.84,146.8,0.03]
[1741218391007,18.64964886,146.82,146.8,0.03]
[1741218391314,20.09712555,146.81,146.79,0.033]
[1741218391612,80.3,146.8,146.79,0.033]
[1741218392642,1.6646,146.84,146.79,0.033]
[1741218392643,80.3,146.83,146.79,0.033]
[1741218393239,18.64964886,146.82,146.79,0.033]
[1741218394098,20.09712555,146.82,146.79,0.033]
[1741218395111,80.3,146.81,146.79,0.033]
[1741218395311,1.44747669,146.8,146.79,0.033]
[1741218395617,20.09712555,146.8,146.79,0.033]
[1741218395933,18.64964886,146.8,146.79,0.033]
[1741218397910,18.68264886,146.8,146.79,0.033]
[1741218399036,0.033,146.8,146.79,0.033]
[1741218400633,0.033,146.8,146.76,0.03]
[1741218401634,18.68264886,146.8,146.76,0.03]
[1741218401816,82.24747669,146.79,146.76,0.03]
[1741218402532,80.8,146.78,146.76,0.03]
[1741218402737,18.64964886,146.77,146.76,0.03]
[1741218403036,80.8,146.78,146.76,0.03]
[1741218403211,0.033,146.8,146.76,0.03]
[1741218412443,0.033,146.8,146.74,104.1815]
[1741218413535,0.033,146.8,146.76,6.8138]
[1741218415046,0.033,146.8,146.76,23.8484]
[1741218416151,0.033,146.8,146.76,104.1483]
[1741218416329,0.033,146.8,146.77,29.1753621]
[1741218416852,0.033,146.8,146.76,87.1137]
[1741218417248,0.033,146.8,146.76,80.2999]
[1741218418351,0.033,146.8,146.76,63.39763172]
[1741218418651,0.033,146.8,146.76,56.58393172]
[1741218419852,0.033,146.8,146.76,63.39763172]
[1741218420574,0.033,146.8,146.76,56.58393172]
[1741218421438,0.033,146.8,146.75,12.9788]
[1741218421845,80.8,146.79,146.74,0.03]
[1741218422159,18.64964886,146.78,146.74,0.03]
[1741218422669,20.09712555,146.78,146.74,0.03]
[1741218423665,80.8,146.77,146.74,0.03]
[1741218423861,80.8,146.76,146.74,0.03]
[1741218424034,18.64964886,146.75,146.74,0.03]
[1741218427451,18.64964886,146.79,146.74,0.03]
[1741218427633,1.44747669,146.78,146.74,0.03]
[1741218428031,18.64964886,146.76,146.73,0.033]
[1741218428257,82.24747669,146.75,146.73,0.033]
[1741218428442,105.96054886,146.74,146.7,0.03]
[1741218428643,18.64964886,146.72,146.69,0.03]
[1741218428850,1.44747669,146.71,146.69,0.03]
[1741218429159,80.8,146.7,146.69,0.03]
[1741218430359,99.44964886,146.7,146.69,0.03]
[1741218431055,80.8,146.72,146.69,0.03]
[1741218431842,6.5109,146.74,146.69,0.03]
[1741218431843,80.8,146.74,146.69,0.03]
[1741218432156,80.8,146.74,146.69,6.847]
[1741218432362,80.8,146.74,146.69,0.03]
[1741218432363,18.64964886,146.73,146.69,0.03]
[1741218432661,80.8,146.74,146.69,0.03]
[1741218433773,18.64964886,146.73,146.69,0.03]
[1741218435050,80.8,146.72,146.69,0.03]
[1741218435446,100.89712555,146.71,146.69,0.03]
[1741218435648,80.8,146.7,146.69,0.03]
[1741218436367,99.44964886,146.7,146.69,0.03]
[1741218437349,80.8,146.74,146.69,0.03]
[1741218438648,18.64964886,146.75,146.69,0.03]
[1741218439767,18.64964886,146.76,146.69,0.03]
[1741218440271,80.8,146.75,146.69,0.03]
[1741218444272,80.8,146.75,146.69,312.03]
[1741218444572,80.8,146.75,146.69,0.03]
[1741218445454,80.833,146.75,146.69,0.03]
[1741218445770,18.64964886,146.74,146.69,0.03]
[1741218446151,80.833,146.75,146.71,20.0]
[1741218446356,0.033,146.75,146.71,18.29509118]
[1741218446758,0.033,146.75,146.7,6.111]
[1741218447799,80.8,146.74,146.7,6.111]
[1741218447967,100.89712555,146.73,146.69,0.03]
[1741218449986,18.64964886,146.71,146.69,0.03]
[1741218451362,1.48047669,146.75,146.69,0.03]
[1741218451363,0.033,146.75,146.69,0.03]
[1741218451565,0.033,146.75,146.71,1.6183]
[1741218451780,0.033,146.75,146.73,35.40608237]
[1741218451961,0.033,146.75,146.74,29.28948237]
[1741218452795,0.033,146.75,146.74,6.8147]
[1741218453083,0.033,146.75,146.74,36.10418237]
[1741218454367,0.033,146.75,146.74,92.68811409]
[1741218454585,0.033,146.75,146.74,404.68811409]
[1741218455877,0.033,146.75,146.74,375.39863172]
[1741218456185,0.033,146.75,146.74,404.68811409]
[1741218456960,0.033,146.75,146.74,404.83027566]
[1741218457182,0.033,146.75,146.74,539.87992452]
[1741218457362,0.033,146.8,146.77,20.0]
[1741218457567,0.033,146.8,146.77,85.87341409]
[1741218458495,0.033,146.8,146.78,6.8129]
[1741218458676,0.033,146.8,146.77,85.87341409]
[1741218458990,0.033,146.8,146.77,63.39713172]
[1741218459165,0.033,146.8,146.77,56.58393172]
[1741218460364,0.033,146.8,146.77,368.58393172]
[1741218460789,0.033,146.8,146.77,404.68661409]
[1741218461100,0.033,146.8,146.78,49.80942238]
[1741218461275,0.033,146.8,146.79,50.91478237]
[1741218461480,0.033,146.8,146.79,51.05694394]
[1741218461804,0.033,146.8,146.79,248.91162452]
[1741218462565,0.033,146.8,146.79,255.72402452]
[1741218463383,0.033,146.8,146.79,265.93373882]
[1741218463565,0.033,146.8,146.79,255.72402452]
[1741218464592,0.033,146.8,146.79,230.11981409]
[1741218464897,0.033,146.8,146.79,200.83033172]
[1741218465302,0.033,146.8,146.79,230.11981409]
[1741218465594,0.033,146.8,146.79,236.93221409]
[1741218467387,0.033,146.8,146.79,200.83033172]
[1741218468199,0.033,146.8,146.79,207.64273172]
[1741218468399,0.0001,146.8,146.79,255.72402452]
[1741218468577,0.033,146.9,146.83,20.0]
[1741218468779,0.033,146.9,146.84,29.28948237]
[1741218468980,0.033,146.9,146.83,85.87341409]
[1741218469575,0.033,146.9,146.83,56.58393172]
[1741218470590,0.033,146.9,146.84,11.52551961]
[1741218470893,0.033,146.9,146.83,63.39433172]
[1741218471086,18.68264886,146.9,146.83,56.58393172]
[1741218471991,18.68264886,146.9,146.79,43.94798237]
[1741218471992,18.64964886,146.88,146.79,93.71981409]
[1741218472181,80.8,146.87,146.79,62.80503172]
[1741218473118,80.8,146.87,146.8,18.26667878]
[1741218473328,80.8,146.87,146.79,81.0717105]
[1741218473492,80.8,146.87,146.79,62.80503172]
[1741218474332,80.8,146.87,146.79,87.8841105]
[1741218474492,80.8,146.87,146.79,62.80503172]
[1741218475000,80.8,146.87,146.79,69.61733172]
[1741218475215,80.8,146.87,146.79,62.80503172]
[1741218475421,80.8,146.87,146.79,69.61743172]
[1741218475623,80.8,146.87,146.79,98.84220192]
[1741218477000,80.8,146.87,146.8,29.2247702]
[1741218477199,80.8,146.87,146.81,6.8115]
[1741218477421,80.8,146.87,146.8,6.8118]
[1741218477630,80.8,146.87,146.79,62.80503172]
[1741218477831,80.8,146.87,146.79,69.61733172]
[1741218478408,80.8,146.87,146.79,62.80503172]
[1741218478808,101.07734886,146.86,146.77,56.58393172]
[1741218479008,101.07734886,146.86,146.8,9.60574882]
[1741218479213,101.07734886,146.86,146.77,56.58393172]
[1741218479634,18.64964886,146.84,146.75,56.58393172]
[1741218479813,80.8,146.83,146.75,56.58393172]
[1741218480439,18.64964886,146.82,146.75,56.58393172]
[1741218480613,18.64964886,146.82,146.75,63.39813172]
[1741218480937,18.64964886,146.82,146.75,63.39803172]
[1741218481238,80.8,146.83,146.75,92.65280192]
[1741218481411,18.64964886,146.82,146.75,56.61393172]
[1741218482539,18.64964886,146.8,146.75,0.03]
[1741218484120,1.5552,146.79,146.75,0.03]
[1741218484319,99.44964886,146.78,146.75,0.03]
[1741218484731,80.8,146.78,146.75,0.03]
[1741218485557,80.8,146.83,146.75,21.6469]
[1741218485760,1.6243,146.85,146.81,29.2247702]
[1741218486058,10.67637758,146.88,146.82,29.2247702]
[1741218486223,10.67637758,146.88,146.83,29.2247702]
[1741218486556,10.67637758,146.88,146.84,29.2247702]
[1741218486850,10.67637758,146.88,146.83,29.2247702]
[1741218487061,10.67637758,146.88,146.81,26.8112]
[1741218487235,10.67637758,146.88,146.82,29.2247702]
[1741218487737,10.67637758,146.88,146.84,29.2247702]
[1741218487943,10.67637758,146.88,146.87,49.2247702]
[1741218488552,0.033,146.9,146.87,49.2247702]
[1741218488732,0.033,146.9,146.89,29.36693177]
[1741218488934,0.033,146.9,146.88,1.42923936]
[1741218489137,0.033,146.9,146.89,56.0325702]
[1741218489441,0.033,146.9,146.89,74.82438063]
[1741218489635,0.033,146.9,146.89,247.80831235]
[1741218490742,0.033,146.9,146.89,229.15866349]
[1741218492477,0.033,146.9,146.89,541.15866349]
[1741218493548,0.033,146.93,146.9,0.56864628]
[1741218493762,0.033,146.93,146.92,49.2247702]
[1741218494681,0.033,146.93,146.92,229.01510192]
[1741218495380,18.68264886,147.01,146.92,229.01510192]
[1741218495381,0.033,147.01,146.93,18.79181043]
[1741218495568,0.033,147.01,146.94,37.67314816]
[1741218496173,0.033,147.01,146.97,20.0]
[1741218496346,0.033,147.01,147.0,29.36693177]
[1741218496546,0.033,147.01,147.0,514.35086349]
[1741218496855,0.033,147.01,147.0,539.80321235]
[1741218497056,0.033,147.01,147.0,546.40671235]
[1741218497788,0.033,147.01,147.0,527.75706349]
[1741218497992,0.033,147.01,147.0,514.35086349]
[1741218498481,0.033,147.01,147.0,202.20870192]
[1741218498867,0.033,147.01,147.0,202.35086349]
[1741218499174,0.033,147.01,147.0,209.15356349]
[1741218499373,0.033,147.01,147.0,227.80321235]
[1741218501280,0.0001,147.01,147.0,228.22969706]
[1741218501502,0.0001,147.01,147.0,542.22969706]
[1741218502066,0.0001,147.01,147.0,539.80321235]
[1741218502270,0.0001,147.01,147.0,202.20870192]
[1741218502506,0.0001,147.01,147.0,172.98393172]
[1741218502898,0.0001,147.01,147.0,56.58393172]
[1741218504488,0.0001,147.01,146.94,56.58393172]
[1741218505179,0.0001,147.01,146.94,56.61393172]
[1741218505784,0.0001,147.01,146.94,92.64380192]
[1741218506590,0.0001,147.01,146.95,29.2247702]
[1741218506796,0.0001,147.01,146.97,20.0]
[1741218507296,0.0001,147.01,146.99,29.2247702]
[1741218507873,0.0001,147.01,146.97,172.98393172]
[1741218508076,0.0001,147.01,146.97,56.58393172]
[1741218510488,0.0001,147.01,146.94,0.03]
[1741218511595,7.6246,146.99,146.94,0.03]
[1741218511894,18.64964886,146.97,146.94,0.03]
[1741218512079,18.64964886,146.95,146.94,0.03]
[1741218513296,18.64964886,146.95,146.88,56.58393172]
[1741218513490,1.44747669,146.94,146.85,172.98393172]
[1741218513693,1.44747669,146.94,146.85,56.58393172]
[1741218514292,18.64964886,146.92,146.81,92.61980192]
[1741218514591,18.64964886,146.89,146.81,56.58393172]
[1741218514793,100.89712555,146.89,146.81,56.58393172]
[1741218514997,18.64964886,146.87,146.8,0.03]
[1741218515206,20.09712555,146.87,146.8,0.03]
[1741218515602,18.64964886,146.87,146.8,0.03]
[1741218517312,80.8,146.88,146.8,6.8419]
[1741218518702,18.64964886,146.87,146.8,0.03]
[1741218518887,18.64964886,146.85,146.8,0.03]
[1741218519092,99.44964886,146.85,146.8,0.03]
[1741218519783,80.8,146.84,146.8,0.03]
[1741218523982,99.44964886,146.88,146.8,56.61393172]
[1741218524298,99.44964886,146.88,146.8,85.83870192]
[1741218525219,99.44964886,146.88,146.81,6.8115]
[1741218526613,99.44964886,146.88,146.81,23.8403]
[1741218526986,7.6236,146.9,146.81,23.8403]
[1741218527393,9.07107669,146.9,146.81,23.8403]
[1741218527589,18.64964886,146.89,146.81,6.8115]
[1741218527786,18.64964886,146.87,146.8,0.03]
[1741218527990,18.64964886,146.85,146.8,0.03]
[1741218528197,99.44964886,146.85,146.8,6.8419]
[1741218528394,80.8,146.85,146.8,6.8419]
[1741218529524,80.8,146.85,146.8,0.03]
[1741218531719,18.64964886,146.84,146.8,0.03]
[1741218533614,80.8,146.85,146.8,0.03]
[1741218535099,99.44964886,146.84,146.8,0.03]
[1741218535296,18.64964886,146.82,146.8,0.03]
[1741218535619,100.99314886,146.81,146.8,0.03]
[1741218535809,20.19314886,146.81,146.8,0.03]
[1741218537098,80.8,146.86,146.8,0.03]
[1741218537299,80.8,146.85,146.8,0.03]
[1741218537917,18.64964886,146.84,146.8,0.03]
[1741218538124,20.09712555,146.84,146.8,0.03]
[1741218539031,18.64964886,146.82,146.8,0.03]
[1741218539220,80.8,146.81,146.8,0.03]
[1741218540523,18.64964886,146.81,146.8,0.03]
[1741218540826,99.44964886,146.8,146.79,0.03]
[1741218541003,100.89712555,146.8,146.79,0.03]
[1741218541421,99.44964886,146.8,146.79,0.03]
[1741218541619,80.8,146.8,146.79,0.03]
[1741218541823,80.8,146.83,146.79,0.03]
[1741218542024,20.09712555,146.82,146.79,0.03]
[1741218542811,80.8,146.81,146.79,0.03]
[1741218543306,80.8,146.81,146.75,0.03]
[1741218543508,80.8,146.84,146.75,85.83870192]
[1741218543703,18.64964886,146.82,146.75,85.83870192]
[1741218543930,18.64964886,146.82,146.75,56.61393172]
[1741218544306,80.8,146.83,146.75,56.61393172]
[1741218544517,80.8,146.83,146.76,29.2247702]
[1741218544920,80.8,146.85,146.78,29.2247702]
[1741218545132,80.8,146.85,146.79,29.2247702]
[1741218545608,80.8,146.85,146.78,29.2247702]
[1741218546117,80.8,146.85,146.77,15.0387]
[1741218546312,80.8,146.85,146.78,29.2247702]
[1741218546535,80.8,146.85,146.77,15.0387]
[1741218546720,80.8,146.85,146.78,29.2247702]
[1741218547127,18.64964886,146.87,146.79,29.2247702]
[1741218547828,18.64964886,146.87,146.79,36.0368702]
[1741218548131,18.64964886,146.87,146.79,348.0368702]
[1741218548627,20.09712555,146.87,146.79,312.0]
[1741218548933,20.09712555,146.87,146.77,37.4505702]
[1741218549234,20.09712555,146.87,146.77,44.2638702]
[1741218549735,20.09712555,146.87,146.78,29.2247702]
[1741218550227,20.09712555,146.87,146.78,36.0375702]
[1741218551336,18.64964886,146.87,146.79,29.2247702]
[1741218551525,80.8,146.88,146.8,29.2247702]
[1741218551725,88.9713,146.9,146.81,29.2247702]
[1741218551912,88.9713,146.9,146.8,368.58393172]
[1741218551913,88.9713,146.9,146.82,29.2247702]
[1741218552113,1.48047669,146.94,146.85,29.2247702]
[1741218552114,80.8,146.93,146.85,29.2247702]
[1741218552314,80.8,146.93,146.86,29.2247702]
[1741218553410,0.033,146.87,146.86,6.8092]
[1741218553632,0.033,146.87,146.86,92.61790192]
[1741218553817,0.033,146.87,146.86,85.80870192]
[1741218554417,0.033,146.87,146.86,92.61790192]
[1741218554617,0.033,146.87,146.86,85.80870192]
[1741218555337,0.033,146.87,146.86,56.58393172]
[1741218556340,0.033,146.87,146.86,85.80870192]
[1741218557719,0.033,146.87,146.86,202.20870192]
[1741218557941,0.033,146.87,146.86,172.98393172]
[1741218559817,0.033,146.87,146.85,6.5841]
[1741218560923,0.033,146.87,146.83,56.58393172]
[1741218562038,0.033,146.87,146.81,6.1666]
[1741218563267,0.033,146.87,146.79,36.0367702]
[1741218563428,0.033,146.87,146.79,92.62070192]
[1741218564764,18.64964886,146.86,146.79,56.58393172]
[1741218564926,18.64964886,146.86,146.79,63.24393172]
[1741218565522,99.44964886,146.86,146.79,6.66]
[1741218566742,99.44964886,146.86,146.78,6.69]
[1741218567140,99.44964886,146.86,146.78,13.5028]
[1741218568654,99.44964886,146.86,146.78,6.69]
[1741218569026,18.64964886,146.84,146.78,0.03]
[1741218569329,18.64964886,146.82,146.78,0.03]
[1741218570122,20.09712555,146.82,146.78,0.03]
[1741218570548,18.64964886,146.8,146.78,0.03]
[1741218570759,99.44964886,146.79,146.78,0.03]
[1741218572426,1.5722,146.83,146.78,0.03]
[1741218572427,80.8,146.82,146.78,0.03]
[1741218573328,18.64964886,146.81,146.78,0.03]
[1741218574049,99.44964886,146.81,146.78,0.03]
[1741218575439,80.8,146.81,146.78,0.03]
[1741218575842,18.64964886,146.8,146.78,0.03]
[1741218576043,99.44964886,146.79,146.78,0.03]
[1741218576237,80.8,146.79,146.78,0.03]
[1741218576560,80.833,146.82,146.78,0.03]
[1741218576946,18.64964886,146.81,146.78,0.03]
[1741218577148,18.64964886,146.79,146.78,0.03]
[1741218579057,18.64964886,146.81,146.78,0.03]
[1741218579233,18.64964886,146.79,146.78,0.03]
[1741218580147,20.09712555,146.81,146.78,0.03]
[1741218581040,20.09712555,146.81,146.75,0.03]
[1741218581250,18.64964886,146.77,146.75,0.03]